[Event "Early-Titled-Tuesday-Blitz-May-14-2024"]
[Site "Chess.com"]
[Date "2024.05.14"]
[Round "7"]
[White "Massakru"]
[Black "Sofia_Blokhin"]
[Result "1-0"]
[WhiteElo "2410"]
[BlackElo "2264"]
[TimeControl "180+1"]
[EndTime "9:18:12 PDT"]
[Termination "Massakru won by resignation"]

1. e4 {[%clk 0:03:00.9]} 1... c5 {[%clk 0:02:59.7]} 2. c3 {[%clk 0:03:00.9]}
2... Nf6 {[%clk 0:02:53]} 3. e5 {[%clk 0:03:01]} 3... Nd5 {[%clk 0:02:53.1]} 4.
Bc4 {[%clk 0:03:01]} 4... e6 {[%clk 0:02:51.2]} 5. Nf3 {[%clk 0:03:00.5]} 5...
d6 {[%clk 0:02:50.6]} 6. O-O {[%clk 0:03:00.3]} 6... Nc6 {[%clk 0:02:50.5]} 7.
d4 {[%clk 0:03:00.4]} 7... cxd4 {[%clk 0:02:49.3]} 8. cxd4 {[%clk 0:03:01.3]}
8... Be7 {[%clk 0:02:49.3]} 9. Qe2 {[%clk 0:03:01.2]} 9... O-O {[%clk
0:02:48.4]} 10. Rd1 {[%clk 0:03:01.5]} 10... b6 {[%clk 0:02:48]} 11. a3 {[%clk
0:03:01]} 11... Bb7 {[%clk 0:02:46.8]} 12. Nbd2 {[%clk 0:02:56.8]} 12... Rc8
{[%clk 0:02:46]} 13. Nf1 {[%clk 0:02:53.8]} 13... Na5 {[%clk 0:02:40.1]} 14. Ba2
{[%clk 0:02:51.7]} 14... Rc7 {[%clk 0:02:21.7]} 15. Ng3 {[%clk 0:02:49.9]} 15...
Qc8 {[%clk 0:02:16.5]} 16. Ne4 {[%clk 0:02:48.8]} 16... dxe5 {[%clk 0:02:14.4]}
17. dxe5 {[%clk 0:02:47.7]} 17... Rc2 {[%clk 0:02:11.6]} 18. Qe1 {[%clk
0:02:38.7]} 18... Ba6 {[%clk 0:01:51.3]} 19. Nd4 {[%clk 0:02:33.3]} 19... Rc7
{[%clk 0:01:44.3]} 20. Nd6 {[%clk 0:02:26.5]} 20... Bxd6 {[%clk 0:01:43]} 21.
exd6 {[%clk 0:02:26.2]} 21... Rd7 {[%clk 0:01:37.2]} 22. Nxe6 {[%clk 0:02:24.3]}
22... Re8 {[%clk 0:01:23.1]} 23. Bxd5 {[%clk 0:02:22]} 23... Rxd6 {[%clk
0:01:20.5]} 24. Ba2 {[%clk 0:02:13.9]} 24... Rxd1 {[%clk 0:01:11.9]} 25. Qxd1
{[%clk 0:02:12.6]} 25... fxe6 {[%clk 0:01:12]} 26. Bd2 {[%clk 0:02:05.2]} 26...
Nc6 {[%clk 0:01:07.8]} 27. Bc3 {[%clk 0:02:04.9]} 27... Qd8 {[%clk 0:01:00.3]}
28. Qg4 {[%clk 0:02:04]} 28... Qe7 {[%clk 0:00:54.3]} 29. Bxe6+ {[%clk
0:02:02.6]} 29... Kh8 {[%clk 0:00:53.9]} 30. Bd7 {[%clk 0:02:02.7]} 30... Be2
{[%clk 0:00:37.9]} 31. Qxg7+ {[%clk 0:01:44.8]} 31... Qxg7 {[%clk 0:00:36.7]}
32. Bxg7+ {[%clk 0:01:45.7]} 32... Kxg7 {[%clk 0:00:37.3]} 33. Bxe8 {[%clk
0:01:45.9]} 33... Nd4 {[%clk 0:00:33.2]} 34. f3 {[%clk 0:01:41]} 34... Nc2
{[%clk 0:00:29.3]} 35. Rc1 {[%clk 0:01:40.3]} 35... Bd3 {[%clk 0:00:28]} 36. Ba4
{[%clk 0:01:39]} 36... Nd4 {[%clk 0:00:20.9]} 37. Rc7+ {[%clk 0:01:33.9]} 37...
Kf6 {[%clk 0:00:20.5]} 38. Rxa7 {[%clk 0:01:32.8]} 1-0

[Event "Early-Titled-Tuesday-Blitz-May-14-2024"]
[Site "Chess.com"]
[Date "2024.05.14"]
[Round "7"]
[White "SujanaLohani"]
[Black "JanMur7"]
[Result "0-1"]
[WhiteElo "1961"]
[BlackElo "2273"]
[TimeControl "180+1"]
[EndTime "9:18:15 PDT"]
[Termination "JanMur7 won by resignation"]

1. e4 {[%clk 0:03:00.9]} 1... g6 {[%clk 0:02:59.7]} 2. d4 {[%clk 0:02:56.2]}
2... Bg7 {[%clk 0:02:59.8]} 3. Nf3 {[%clk 0:02:55.5]} 3... c5 {[%clk 0:02:59.7]}
4. d5 {[%clk 0:02:53.8]} 4... d6 {[%clk 0:02:58.9]} 5. Nc3 {[%clk 0:02:45.3]}
5... Nf6 {[%clk 0:02:58.9]} 6. Be2 {[%clk 0:02:41.9]} 6... O-O {[%clk
0:02:59.4]} 7. O-O {[%clk 0:02:42.3]} 7... a6 {[%clk 0:02:59.6]} 8. a4 {[%clk
0:02:41.5]} 8... Bd7 {[%clk 0:02:59.8]} 9. h3 {[%clk 0:02:38.3]} 9... Be8 {[%clk
0:02:59.5]} 10. Bf4 {[%clk 0:02:37.8]} 10... Nbd7 {[%clk 0:02:59.2]} 11. Bh2
{[%clk 0:02:35]} 11... Nb6 {[%clk 0:02:54.9]} 12. a5 {[%clk 0:02:29.2]} 12...
Nc8 {[%clk 0:02:42]} 13. e5 {[%clk 0:02:27.2]} 13... dxe5 {[%clk 0:02:41.4]} 14.
Nxe5 {[%clk 0:02:24.1]} 14... Nd6 {[%clk 0:02:38.7]} 15. Nc4 {[%clk 0:02:19.7]}
15... Nfe4 {[%clk 0:02:23.1]} 16. Nxe4 {[%clk 0:02:13.1]} 16... Nxe4 {[%clk
0:02:23.1]} 17. Bf3 {[%clk 0:02:13.6]} 17... Nd6 {[%clk 0:02:22]} 18. Nxd6
{[%clk 0:02:11.5]} 18... exd6 {[%clk 0:02:21.6]} 19. c3 {[%clk 0:02:11.8]} 19...
Bb5 {[%clk 0:02:20.5]} 20. Be2 {[%clk 0:02:10.4]} 20... Bxe2 {[%clk 0:02:13.7]}
21. Qxe2 {[%clk 0:02:08.6]} 21... Re8 {[%clk 0:02:14.2]} 22. Qf3 {[%clk
0:02:08]} 22... f5 {[%clk 0:02:14]} 23. Rfe1 {[%clk 0:02:04.4]} 23... Qd7 {[%clk
0:02:13]} 24. Re6 {[%clk 0:02:01]} 24... Rxe6 {[%clk 0:02:09.2]} 25. dxe6 {[%clk
0:02:01.6]} 25... Qxe6 {[%clk 0:02:10.1]} 26. Qxb7 {[%clk 0:02:01.7]} 26... Re8
{[%clk 0:02:10.8]} 27. Bf4 {[%clk 0:02:00]} 27... h6 {[%clk 0:02:02.5]} 28. Qxa6
{[%clk 0:01:54.5]} 28... g5 {[%clk 0:02:02.5]} 29. Bd2 {[%clk 0:01:45.7]} 29...
Qd5 {[%clk 0:01:58.4]} 30. Rd1 {[%clk 0:01:42.3]} 30... Be5 {[%clk 0:01:54.4]}
31. Qb5 {[%clk 0:01:39.2]} 31... Re7 {[%clk 0:01:48.8]} 32. a6 {[%clk 0:01:39]}
32... Bf4 {[%clk 0:01:44.1]} 33. a7 {[%clk 0:01:35.3]} 33... Kg7 {[%clk
0:01:27.6]} 34. c4 {[%clk 0:01:28.3]} 34... Qxd2 {[%clk 0:01:24.5]} 35. Rf1
{[%clk 0:01:09.3]} 35... Rxa7 {[%clk 0:01:19.4]} 36. g3 {[%clk 0:01:09.5]} 36...
Be5 {[%clk 0:01:16.4]} 37. Qb8 {[%clk 0:01:09]} 37... Rf7 {[%clk 0:01:11.5]} 38.
b3 {[%clk 0:00:54.8]} 38... f4 {[%clk 0:01:07.6]} 39. g4 {[%clk 0:00:55]} 39...
f3 {[%clk 0:01:07.3]} 40. Qe8 {[%clk 0:00:54.2]} 40... Qf4 {[%clk 0:01:06.6]}
0-1

[Event "Early-Titled-Tuesday-Blitz-May-14-2024"]
[Site "Chess.com"]
[Date "2024.05.14"]
[Round "7"]
[White "ReadySkate"]
[Black "Rodalquilar"]
[Result "0-1"]
[WhiteElo "2732"]
[BlackElo "2880"]
[TimeControl "180+1"]
[EndTime "9:18:19 PDT"]
[Termination "Rodalquilar won by checkmate"]

1. d4 {[%clk 0:03:00.9]} 1... d5 {[%clk 0:03:00.1]} 2. c4 {[%clk 0:03:00.6]}
2... e6 {[%clk 0:03:00.7]} 3. Nc3 {[%clk 0:03:00.7]} 3... a6 {[%clk 0:03:01.3]}
4. e4 {[%clk 0:03:00.7]} 4... dxe4 {[%clk 0:03:00.9]} 5. Nxe4 {[%clk 0:03:01.6]}
5... Bb4+ {[%clk 0:03:01.1]} 6. Nc3 {[%clk 0:03:02.1]} 6... c5 {[%clk
0:02:52.4]} 7. a3 {[%clk 0:03:01.3]} 7... Bxc3+ {[%clk 0:02:44.9]} 8. bxc3
{[%clk 0:03:02.2]} 8... Qa5 {[%clk 0:02:39.1]} 9. Bd2 {[%clk 0:02:59.7]} 9...
Nf6 {[%clk 0:02:38.8]} 10. Nf3 {[%clk 0:02:59.2]} 10... O-O {[%clk 0:02:30.2]}
11. Bd3 {[%clk 0:02:58.3]} 11... Rd8 {[%clk 0:02:28.7]} 12. O-O {[%clk
0:02:57.9]} 12... Nc6 {[%clk 0:02:27.9]} 13. Qe2 {[%clk 0:02:57.2]} 13... Qc7
{[%clk 0:01:38.7]} 14. Bg5 {[%clk 0:02:54.4]} 14... cxd4 {[%clk 0:01:28.7]} 15.
Bxf6 {[%clk 0:02:52.2]} 15... gxf6 {[%clk 0:01:28.5]} 16. Nxd4 {[%clk
0:02:43.9]} 16... Nxd4 {[%clk 0:01:27]} 17. Qg4+ {[%clk 0:02:42.7]} 17... Kf8
{[%clk 0:01:12]} 18. cxd4 {[%clk 0:02:43.6]} 18... Qd6 {[%clk 0:01:11.9]} 19.
Bxh7 {[%clk 0:02:35.8]} 19... Qxd4 {[%clk 0:01:12]} 20. Qg3 {[%clk 0:02:14.8]}
20... Qe5 {[%clk 0:01:05.7]} 21. f4 {[%clk 0:01:59]} 21... Qd4+ {[%clk
0:01:01.6]} 22. Kh1 {[%clk 0:01:57.8]} 22... f5 {[%clk 0:01:02.1]} 23. Qg5
{[%clk 0:01:51.8]} 23... Rd6 {[%clk 0:00:53.5]} 24. c5 {[%clk 0:01:47.5]} 24...
Rd5 {[%clk 0:00:54]} 25. Qh4 {[%clk 0:01:29]} 25... Bd7 {[%clk 0:00:49.8]} 26.
Rae1 {[%clk 0:01:28]} 26... Qg7 {[%clk 0:00:46.4]} 27. Re3 {[%clk 0:01:20.6]}
27... Bb5 {[%clk 0:00:38.2]} 28. Rg1 {[%clk 0:01:17.9]} 28... Rd3 {[%clk
0:00:37.1]} 29. Rxd3 {[%clk 0:01:16.7]} 29... Bxd3 {[%clk 0:00:38]} 30. Rd1
{[%clk 0:01:16.5]} 30... Ke8 {[%clk 0:00:29.9]} 31. h3 {[%clk 0:01:14]} 31...
Be4 {[%clk 0:00:26.5]} 32. a4 {[%clk 0:01:09.1]} 32... Qxg2# {[%clk 0:00:26]}
0-1

[Event "Early-Titled-Tuesday-Blitz-May-14-2024"]
[Site "Chess.com"]
[Date "2024.05.14"]
[Round "7"]
[White "Flaccidmoves"]
[Black "ZachHKL"]
[Result "1-0"]
[WhiteElo "2426"]
[BlackElo "2307"]
[TimeControl "180+1"]
[EndTime "9:18:22 PDT"]
[Termination "Flaccidmoves won by resignation"]

1. c4 {[%clk 0:03:00.9]} 1... c6 {[%clk 0:02:59.1]} 2. d4 {[%clk 0:03:00.2]}
2... d5 {[%clk 0:02:58.8]} 3. cxd5 {[%clk 0:03:01.1]} 3... cxd5 {[%clk
0:02:58.7]} 4. Bg5 {[%clk 0:03:01.8]} 4... Nc6 {[%clk 0:02:56.9]} 5. Nc3 {[%clk
0:03:02]} 5... h6 {[%clk 0:02:55.7]} 6. Bh4 {[%clk 0:03:01.7]} 6... Nf6 {[%clk
0:02:51.6]} 7. Bxf6 {[%clk 0:03:01.9]} 7... gxf6 {[%clk 0:02:49.7]} 8. e3 {[%clk
0:03:02.3]} 8... Rg8 {[%clk 0:02:47.5]} 9. g3 {[%clk 0:02:59.8]} 9... e6 {[%clk
0:02:47.2]} 10. Nge2 {[%clk 0:02:56.7]} 10... Bd6 {[%clk 0:02:42.7]} 11. Bg2
{[%clk 0:02:55.2]} 11... Bd7 {[%clk 0:02:40.8]} 12. Rc1 {[%clk 0:02:47.7]} 12...
a6 {[%clk 0:02:38.1]} 13. O-O {[%clk 0:02:46.1]} 13... h5 {[%clk 0:02:37]} 14.
h4 {[%clk 0:02:45.2]} 14... Qc7 {[%clk 0:02:33]} 15. Na4 {[%clk 0:02:38.8]}
15... Ke7 {[%clk 0:02:27.7]} 16. Nc5 {[%clk 0:02:34.4]} 16... b6 {[%clk
0:02:25.5]} 17. Nxd7 {[%clk 0:02:31.4]} 17... Qxd7 {[%clk 0:02:26.4]} 18. e4
{[%clk 0:02:20.5]} 18... dxe4 {[%clk 0:02:24.3]} 19. d5 {[%clk 0:02:20.4]} 19...
Ne5 {[%clk 0:02:19.1]} 20. Bxe4 {[%clk 0:02:13.4]} 20... Rac8 {[%clk 0:02:16.8]}
21. Qb3 {[%clk 0:02:03.1]} 21... f5 {[%clk 0:02:05.9]} 22. Bg2 {[%clk
0:01:59.8]} 22... Bc5 {[%clk 0:02:04.3]} 23. dxe6 {[%clk 0:01:54.5]} 23... fxe6
{[%clk 0:02:01.9]} 24. Rfd1 {[%clk 0:01:52.2]} 24... Qe8 {[%clk 0:01:48.5]} 25.
Nf4 {[%clk 0:01:50.5]} 25... Qf7 {[%clk 0:01:46.9]} 26. Re1 {[%clk 0:01:40.3]}
26... Qf6 {[%clk 0:01:38.8]} 27. Rxc5 {[%clk 0:01:07.5]} 27... Rxc5 {[%clk
0:01:34]} 28. Qxb6 {[%clk 0:01:06.9]} 28... Rgc8 {[%clk 0:01:30.9]} 29. Nxh5
{[%clk 0:00:48.3]} 29... Qh8 {[%clk 0:01:26.6]} 30. Nf4 {[%clk 0:00:47.7]} 30...
Qf6 {[%clk 0:01:24]} 31. b4 {[%clk 0:00:44.4]} 31... Rc4 {[%clk 0:01:17]} 32.
Qe3 {[%clk 0:00:35.8]} 32... Ng4 {[%clk 0:01:10.6]} 33. Qa7+ {[%clk 0:00:32.9]}
33... R8c7 {[%clk 0:01:08]} 34. Nd5+ {[%clk 0:00:32.7]} 34... Kd6 {[%clk
0:01:05.9]} 35. Qb6+ {[%clk 0:00:29.7]} 35... Kd7 {[%clk 0:01:05.1]} 36. Nxf6+
{[%clk 0:00:29.1]} 1-0

[Event "Early-Titled-Tuesday-Blitz-May-14-2024"]
[Site "Chess.com"]
[Date "2024.05.14"]
[Round "7"]
[White "Mikhail_Bryakin"]
[Black "Msb2"]
[Result "0-1"]
[WhiteElo "2891"]
[BlackElo "3068"]
[TimeControl "180+1"]
[EndTime "9:18:26 PDT"]
[Termination "Msb2 won by resignation"]

1. Nf3 {[%clk 0:03:00.9]} 1... d5 {[%clk 0:03:00.1]} 2. d4 {[%clk 0:03:00.3]}
2... e6 {[%clk 0:03:00.4]} 3. Bf4 {[%clk 0:02:57.8]} 3... c5 {[%clk 0:03:00.7]}
4. e3 {[%clk 0:02:57.8]} 4... Nc6 {[%clk 0:03:01.5]} 5. c3 {[%clk 0:02:57.8]}
5... Bd6 {[%clk 0:03:02]} 6. Bg3 {[%clk 0:02:55.7]} 6... Nge7 {[%clk 0:03:02.4]}
7. Nbd2 {[%clk 0:02:53.3]} 7... cxd4 {[%clk 0:03:02.8]} 8. cxd4 {[%clk
0:02:52.6]} 8... O-O {[%clk 0:03:03]} 9. Bd3 {[%clk 0:02:52.5]} 9... Nf5 {[%clk
0:03:03.6]} 10. Bxf5 {[%clk 0:02:49.9]} 10... exf5 {[%clk 0:03:02.3]} 11. O-O
{[%clk 0:02:49.2]} 11... f4 {[%clk 0:03:02.9]} 12. Bxf4 {[%clk 0:02:47.7]} 12...
Bxf4 {[%clk 0:03:03.1]} 13. exf4 {[%clk 0:02:48.4]} 13... Qf6 {[%clk 0:03:04]}
14. Ne5 {[%clk 0:02:34.4]} 14... Nxd4 {[%clk 0:03:03.4]} 15. Ndf3 {[%clk
0:02:35]} 15... Nxf3+ {[%clk 0:03:03.7]} 16. Qxf3 {[%clk 0:02:35.3]} 16... Be6
{[%clk 0:03:04.4]} 17. Rad1 {[%clk 0:02:26.5]} 17... Rac8 {[%clk 0:02:59.8]} 18.
Rd4 {[%clk 0:02:23.6]} 18... Rc7 {[%clk 0:02:39.8]} 19. Qa3 {[%clk 0:02:18.7]}
19... a6 {[%clk 0:02:37.2]} 20. h3 {[%clk 0:02:13.1]} 20... Rfc8 {[%clk
0:02:37]} 21. Rfd1 {[%clk 0:02:11.1]} 21... h6 {[%clk 0:02:19.3]} 22. R1d2
{[%clk 0:02:06.7]} 22... Rc1+ {[%clk 0:02:17.8]} 23. Kh2 {[%clk 0:02:06.3]}
23... Rf1 {[%clk 0:02:02.8]} 24. Kg3 {[%clk 0:01:33.8]} 24... h5 {[%clk
0:01:27.2]} 25. h4 {[%clk 0:01:32.9]} 25... Rh1 {[%clk 0:01:25.2]} 26. Kf3
{[%clk 0:00:40.1]} 26... Bg4+ {[%clk 0:01:13.5]} 27. Nxg4 {[%clk 0:00:27.4]}
27... hxg4+ {[%clk 0:01:14.4]} 28. Kxg4 {[%clk 0:00:28.1]} 28... Qxh4+ {[%clk
0:01:08.3]} 29. Kf3 {[%clk 0:00:28.7]} 29... Re8 {[%clk 0:01:09]} 30. g3 {[%clk
0:00:19.7]} 30... Qh5+ {[%clk 0:01:07.4]} 31. Kg2 {[%clk 0:00:20.1]} 31... Rh2+
{[%clk 0:01:05.7]} 0-1

[Event "Early-Titled-Tuesday-Blitz-May-14-2024"]
[Site "Chess.com"]
[Date "2024.05.14"]
[Round "7"]
[White "super_emi_26"]
[Black "Viktoker"]
[Result "1-0"]
[WhiteElo "2871"]
[BlackElo "2353"]
[TimeControl "180+1"]
[EndTime "9:18:31 PDT"]
[Termination "super_emi_26 won by resignation"]

1. b3 {[%clk 0:02:40.1]} 1... f5 {[%clk 0:02:57.2]} 2. Bb2 {[%clk 0:02:27.3]}
2... Nf6 {[%clk 0:02:57.6]} 3. e3 {[%clk 0:02:26.4]} 3... d6 {[%clk 0:02:56.2]}
4. d4 {[%clk 0:02:27]} 4... g6 {[%clk 0:02:55.8]} 5. Nf3 {[%clk 0:02:27.7]} 5...
Bg7 {[%clk 0:02:56.2]} 6. g3 {[%clk 0:02:27.8]} 6... O-O {[%clk 0:02:56.7]} 7.
Bg2 {[%clk 0:02:28.4]} 7... Nc6 {[%clk 0:02:53.6]} 8. O-O {[%clk 0:02:28.1]}
8... Ne4 {[%clk 0:02:40.4]} 9. Nfd2 {[%clk 0:02:26.4]} 9... Nxd2 {[%clk
0:02:36.8]} 10. Nxd2 {[%clk 0:02:26.7]} 10... e5 {[%clk 0:02:30.8]} 11. dxe5
{[%clk 0:02:27.6]} 11... dxe5 {[%clk 0:02:31.6]} 12. Nc4 {[%clk 0:02:22.5]}
12... Qe7 {[%clk 0:02:20.9]} 13. Ba3 {[%clk 0:02:21.4]} 13... Qf7 {[%clk
0:01:56.6]} 14. Bxf8 {[%clk 0:02:16.9]} 14... Qxf8 {[%clk 0:01:56.8]} 15. Qd5+
{[%clk 0:02:13.3]} 15... Kh8 {[%clk 0:01:51.6]} 16. Rad1 {[%clk 0:02:13.6]}
16... e4 {[%clk 0:01:46.3]} 17. f3 {[%clk 0:02:13]} 17... exf3 {[%clk
0:01:44.7]} 18. Bxf3 {[%clk 0:02:13.9]} 18... Qe7 {[%clk 0:01:41.6]} 19. Qd2
{[%clk 0:02:01]} 19... Be6 {[%clk 0:01:37.4]} 20. Bd5 {[%clk 0:01:59.3]} 20...
Rd8 {[%clk 0:01:16.7]} 21. Qg2 {[%clk 0:01:57]} 21... Bd7 {[%clk 0:01:00.9]} 22.
Kh1 {[%clk 0:01:49.6]} 22... Re8 {[%clk 0:00:59.6]} 23. Rfe1 {[%clk 0:01:43.8]}
23... Nb4 {[%clk 0:00:53.4]} 24. Bf3 {[%clk 0:01:37.8]} 24... Nxa2 {[%clk
0:00:50.8]} 25. e4 {[%clk 0:01:37.9]} 25... Nc3 {[%clk 0:00:48]} 26. Rd3 {[%clk
0:01:32.2]} 26... Nxe4 {[%clk 0:00:46.1]} 27. Rde3 {[%clk 0:01:10.6]} 27... Bd4
{[%clk 0:00:33.3]} 28. R3e2 {[%clk 0:01:10]} 28... Nf2+ {[%clk 0:00:15.1]} 29.
Qxf2 {[%clk 0:01:09.9]} 29... Bxf2 {[%clk 0:00:15.1]} 30. Rxe7 {[%clk 0:01:09]}
30... Bxe1 {[%clk 0:00:15.5]} 31. Rxd7 {[%clk 0:01:09]} 1-0

[Event "Early-Titled-Tuesday-Blitz-May-14-2024"]
[Site "Chess.com"]
[Date "2024.05.14"]
[Round "7"]
[White "Mikhail_Golubev"]
[Black "FREDERICKtheMATE"]
[Result "0-1"]
[WhiteElo "2536"]
[BlackElo "2674"]
[TimeControl "180+1"]
[EndTime "9:18:33 PDT"]
[Termination "FREDERICKtheMATE won on time"]

1. e4 {[%clk 0:03:00.9]} 1... e6 {[%clk 0:02:57.8]} 2. d4 {[%clk 0:03:00.1]}
2... d5 {[%clk 0:02:58.7]} 3. e5 {[%clk 0:03:00.3]} 3... c5 {[%clk 0:02:58.6]}
4. c3 {[%clk 0:03:00.9]} 4... Qb6 {[%clk 0:02:58.1]} 5. Nf3 {[%clk 0:02:59.4]}
5... Bd7 {[%clk 0:02:58.6]} 6. Bd3 {[%clk 0:02:51.5]} 6... Bb5 {[%clk
0:02:57.5]} 7. O-O {[%clk 0:02:51.1]} 7... Bxd3 {[%clk 0:02:56.8]} 8. Qxd3
{[%clk 0:02:51.6]} 8... Nc6 {[%clk 0:02:57.4]} 9. dxc5 {[%clk 0:02:33.8]} 9...
Bxc5 {[%clk 0:02:53.8]} 10. b4 {[%clk 0:02:30]} 10... Be7 {[%clk 0:02:53.6]} 11.
Be3 {[%clk 0:02:21.4]} 11... Qc7 {[%clk 0:02:53.2]} 12. Nbd2 {[%clk 0:02:21.4]}
12... a6 {[%clk 0:02:49]} 13. Rfe1 {[%clk 0:02:01.4]} 13... Bd8 {[%clk
0:02:29.8]} 14. Bc5 {[%clk 0:01:56.5]} 14... Be7 {[%clk 0:02:29.5]} 15. Nb3
{[%clk 0:01:16.1]} 15... Bxc5 {[%clk 0:02:27.2]} 16. Nxc5 {[%clk 0:01:17]} 16...
Nge7 {[%clk 0:02:25.7]} 17. a3 {[%clk 0:01:10.1]} 17... h6 {[%clk 0:02:22.9]}
18. c4 {[%clk 0:01:08.8]} 18... O-O {[%clk 0:02:15.6]} 19. cxd5 {[%clk
0:00:48.1]} 19... Nxd5 {[%clk 0:02:16.5]} 20. Rac1 {[%clk 0:00:47.3]} 20... Rfd8
{[%clk 0:02:15]} 21. Qe4 {[%clk 0:00:47.2]} 21... Qb6 {[%clk 0:02:04.9]} 22. Nd2
{[%clk 0:00:27]} 22... Ndxb4 {[%clk 0:01:52.3]} 23. axb4 {[%clk 0:00:20.5]}
23... Rxd2 {[%clk 0:01:51.6]} 24. Qe3 {[%clk 0:00:12.3]} 24... Rd5 {[%clk
0:01:38.4]} 25. Qg3 {[%clk 0:00:05.1]} 25... Qxb4 {[%clk 0:01:33.3]} 26. Ne4
{[%clk 0:00:05.3]} 26... Kh7 {[%clk 0:01:22.4]} 27. Nd6 {[%clk 0:00:05]} 27...
Nxe5 {[%clk 0:01:17.3]} 28. Rxe5 {[%clk 0:00:04.4]} 28... Qxd6 {[%clk
0:01:15.6]} 29. Rxd5 {[%clk 0:00:03.2]} 29... Qxg3 {[%clk 0:01:15.5]} 30. hxg3
{[%clk 0:00:03.9]} 30... exd5 {[%clk 0:01:16]} 0-1

[Event "Early-Titled-Tuesday-Blitz-May-14-2024"]
[Site "Chess.com"]
[Date "2024.05.14"]
[Round "7"]
[White "RobertoJBM"]
[Black "hakanazeri2"]
[Result "0-1"]
[WhiteElo "2833"]
[BlackElo "2599"]
[TimeControl "180+1"]
[EndTime "9:18:35 PDT"]
[Termination "hakanazeri2 won on time"]

1. d4 {[%clk 0:03:00.9]} 1... Nf6 {[%clk 0:02:54.9]} 2. Nf3 {[%clk 0:03:01.3]}
2... d5 {[%clk 0:02:55]} 3. e3 {[%clk 0:03:01.6]} 3... c5 {[%clk 0:02:54.5]} 4.
c3 {[%clk 0:03:01.4]} 4... Qc7 {[%clk 0:02:53.9]} 5. Nbd2 {[%clk 0:03:01.6]}
5... g6 {[%clk 0:02:52.2]} 6. b4 {[%clk 0:02:40.2]} 6... cxd4 {[%clk 0:02:49.5]}
7. cxd4 {[%clk 0:02:40]} 7... Bg7 {[%clk 0:02:50.2]} 8. Bb2 {[%clk 0:02:39.6]}
8... O-O {[%clk 0:02:50.6]} 9. Rc1 {[%clk 0:02:39.8]} 9... Qb6 {[%clk
0:02:50.6]} 10. Qb3 {[%clk 0:02:38.4]} 10... Nc6 {[%clk 0:02:49.7]} 11. b5
{[%clk 0:02:34.1]} 11... Na5 {[%clk 0:02:47]} 12. Qb4 {[%clk 0:02:34.1]} 12...
Bd7 {[%clk 0:02:45.8]} 13. Be2 {[%clk 0:02:26.5]} 13... a6 {[%clk 0:02:43.7]}
14. a4 {[%clk 0:02:20.6]} 14... axb5 {[%clk 0:02:43.6]} 15. axb5 {[%clk
0:02:21]} 15... Rfc8 {[%clk 0:02:41.5]} 16. O-O {[%clk 0:02:20.4]} 16... e6
{[%clk 0:02:41.9]} 17. Rxc8+ {[%clk 0:02:16.5]} 17... Bxc8 {[%clk 0:02:38.2]}
18. Ra1 {[%clk 0:01:51.8]} 18... Bf8 {[%clk 0:02:37.1]} 19. Qc3 {[%clk 0:01:39]}
19... Bd7 {[%clk 0:02:10.9]} 20. Nb3 {[%clk 0:01:27.6]} 20... Bxb5 {[%clk
0:02:10.7]} 21. Bxb5 {[%clk 0:01:24.2]} 21... Qxb5 {[%clk 0:02:11.6]} 22. Rxa5
{[%clk 0:01:15.5]} 22... Rxa5 {[%clk 0:02:11.2]} 23. Nxa5 {[%clk 0:01:15.6]}
23... Bb4 {[%clk 0:02:11.8]} 24. Qc8+ {[%clk 0:01:12.7]} 24... Kg7 {[%clk
0:02:12.4]} 25. Nb3 {[%clk 0:00:56.6]} 25... Qd3 {[%clk 0:02:09.5]} 26. Qc1
{[%clk 0:00:22.2]} 26... Qxb3 {[%clk 0:02:07.3]} 27. Ne5 {[%clk 0:00:22.2]}
27... Ne4 {[%clk 0:02:02.1]} 28. h3 {[%clk 0:00:18]} 28... Nd6 {[%clk
0:01:58.4]} 29. Ba1 {[%clk 0:00:12.8]} 29... Nc4 {[%clk 0:01:53.9]} 30. Nf3
{[%clk 0:00:12.1]} 30... b5 {[%clk 0:01:42.3]} 31. g4 {[%clk 0:00:11.1]} 31...
Ba3 {[%clk 0:01:40]} 32. Qf1 {[%clk 0:00:10.6]} 32... b4 {[%clk 0:01:37.9]} 33.
Kg2 {[%clk 0:00:09.9]} 33... Qa2 {[%clk 0:01:37.5]} 34. Kg3 {[%clk 0:00:08.9]}
34... b3 {[%clk 0:01:37.7]} 35. Bc3 {[%clk 0:00:08.7]} 35... Qc2 {[%clk
0:01:36.5]} 36. Qe1 {[%clk 0:00:07.8]} 36... Bb4 {[%clk 0:01:33.6]} 37. Bxb4
{[%clk 0:00:08.2]} 37... b2 {[%clk 0:01:34.2]} 38. Bc5 {[%clk 0:00:05.7]} 38...
b1=Q {[%clk 0:01:33.4]} 0-1

[Event "Early-Titled-Tuesday-Blitz-May-14-2024"]
[Site "Chess.com"]
[Date "2024.05.14"]
[Round "7"]
[White "Denisenko_Denis"]
[Black "stepanosinovsky"]
[Result "0-1"]
[WhiteElo "2417"]
[BlackElo "2325"]
[TimeControl "180+1"]
[EndTime "9:18:42 PDT"]
[Termination "stepanosinovsky won by resignation"]

1. e4 {[%clk 0:02:26.8]} 1... e5 {[%clk 0:02:57.2]} 2. Nf3 {[%clk 0:02:26.2]}
2... Nc6 {[%clk 0:02:57.8]} 3. Bb5 {[%clk 0:02:25.7]} 3... a6 {[%clk 0:02:57.4]}
4. Bxc6 {[%clk 0:02:25.4]} 4... dxc6 {[%clk 0:02:58.3]} 5. O-O {[%clk
0:02:25.5]} 5... f6 {[%clk 0:02:57.7]} 6. d4 {[%clk 0:02:25.3]} 6... exd4 {[%clk
0:02:58.6]} 7. Qxd4 {[%clk 0:02:25.1]} 7... Qxd4 {[%clk 0:02:59.1]} 8. Nxd4
{[%clk 0:02:26]} 8... c5 {[%clk 0:02:58.6]} 9. Ne2 {[%clk 0:02:25.3]} 9... Bd6
{[%clk 0:02:56.1]} 10. Bf4 {[%clk 0:02:24.9]} 10... Be6 {[%clk 0:02:45.9]} 11.
Rd1 {[%clk 0:02:22.6]} 11... O-O-O {[%clk 0:02:45.2]} 12. Bxd6 {[%clk
0:02:20.6]} 12... Rxd6 {[%clk 0:02:41.9]} 13. Nbc3 {[%clk 0:02:20.3]} 13... Ne7
{[%clk 0:02:41.2]} 14. f3 {[%clk 0:02:18.3]} 14... Rhd8 {[%clk 0:02:40.4]} 15.
b3 {[%clk 0:02:01.9]} 15... b6 {[%clk 0:02:34.4]} 16. Kf2 {[%clk 0:01:59.9]}
16... Nc6 {[%clk 0:02:29.2]} 17. Rxd6 {[%clk 0:01:56.8]} 17... Rxd6 {[%clk
0:02:22.1]} 18. Rd1 {[%clk 0:01:55.9]} 18... Nd4 {[%clk 0:02:22]} 19. Nxd4
{[%clk 0:01:54.2]} 19... cxd4 {[%clk 0:02:22.9]} 20. Ne2 {[%clk 0:01:53.9]}
20... c5 {[%clk 0:02:21.5]} 21. Nf4 {[%clk 0:01:52.3]} 21... Bf7 {[%clk
0:02:16.8]} 22. Ke2 {[%clk 0:01:51.7]} 22... Kc7 {[%clk 0:02:15.1]} 23. g4
{[%clk 0:01:50.7]} 23... b5 {[%clk 0:02:11.9]} 24. h4 {[%clk 0:01:44.2]} 24...
c4 {[%clk 0:02:11.7]} 25. h5 {[%clk 0:01:38.6]} 25... a5 {[%clk 0:02:06.2]} 26.
Kd2 {[%clk 0:01:27.2]} 26... d3 {[%clk 0:02:02.1]} 27. cxd3 {[%clk 0:01:22.4]}
27... cxb3 {[%clk 0:02:00.7]} 28. axb3 {[%clk 0:01:19.5]} 28... Bxb3 {[%clk
0:02:00.7]} 29. Rc1+ {[%clk 0:01:19.5]} 29... Rc6 {[%clk 0:02:00.2]} 30. Rxc6+
{[%clk 0:01:19.3]} 30... Kxc6 {[%clk 0:02:00.3]} 31. d4 {[%clk 0:01:19.4]} 31...
b4 {[%clk 0:01:48]} 32. d5+ {[%clk 0:01:04.3]} 32... Kd7 {[%clk 0:01:39.8]} 33.
Ne6 {[%clk 0:01:03]} 33... Bc4 {[%clk 0:01:28.3]} 34. Nxg7 {[%clk 0:00:47.9]}
34... a4 {[%clk 0:01:28.4]} 35. Nf5 {[%clk 0:00:47.7]} 35... a3 {[%clk
0:01:28.4]} 36. Kc2 {[%clk 0:00:46.8]} 36... b3+ {[%clk 0:01:28.4]} 37. Kc3
{[%clk 0:00:44.1]} 37... b2 {[%clk 0:01:25.6]} 38. Kc2 {[%clk 0:00:43.5]} 38...
Bd3+ {[%clk 0:01:19]} 0-1